[Event "*** Titled Tuesday 3|2 Blitz"]
[Site "Chess.com"]
[Date "2015.09.01"]
[Round "9"]
[White "SCIM"]
[Black "Tesla17"]
[Result "0-1"]
[WhiteElo "2118"]
[BlackElo "2146"]
[TimeControl "180+2"]
[EndTime "12:48:34 PDT"]
[Termination "Tesla17 won by checkmate"]

1. d4 {[%clk 0:03:01.9]} 1... c5 {[%clk 0:03:01.9]} 2. d5 {[%clk 0:03:01.3]}
2... e6 {[%clk 0:03:03.4]} 3. c4 {[%clk 0:03:02]} 3... exd5 {[%clk 0:03:04.9]}
4. cxd5 {[%clk 0:03:03.4]} 4... d6 {[%clk 0:03:06.5]} 5. Nc3 {[%clk 0:03:04.7]}
5... Be7 {[%clk 0:03:08.1]} 6. e4 {[%clk 0:03:05.1]} 6... Bf6 {[%clk 0:03:09.6]}
7. Bd3 {[%clk 0:03:03.2]} 7... Ne7 {[%clk 0:03:11.1]} 8. Nge2 {[%clk 0:03:03.9]}
8... Ng6 {[%clk 0:03:12.5]} 9. O-O {[%clk 0:03:04.3]} 9... O-O {[%clk
0:03:13.7]} 10. f4 {[%clk 0:03:04.8]} 10... Na6 {[%clk 0:03:15.1]} 11. Be3
{[%clk 0:02:59.6]} 11... Nc7 {[%clk 0:03:16.3]} 12. a4 {[%clk 0:02:54.1]} 12...
Re8 {[%clk 0:03:17.4]} 13. Kh1 {[%clk 0:02:53.4]} 13... a6 {[%clk 0:03:18.8]}
14. a5 {[%clk 0:02:53]} 14... Bd7 {[%clk 0:03:19.7]} 15. Qc2 {[%clk 0:02:47.8]}
15... Nb5 {[%clk 0:03:19.9]} 16. Nxb5 {[%clk 0:02:46.8]} 16... axb5 {[%clk
0:03:20.3]} 17. Nc3 {[%clk 0:02:30]} 17... Rxa5 {[%clk 0:03:15.9]} 18. Rxa5
{[%clk 0:02:27.1]} 18... Qxa5 {[%clk 0:03:17.8]} 19. e5 {[%clk 0:02:26.4]} 19...
dxe5 {[%clk 0:03:15.5]} 20. fxe5 {[%clk 0:02:22.4]} 20... Rxe5 {[%clk
0:03:03.5]} 21. Bxc5 {[%clk 0:02:20.4]} 21... b4 {[%clk 0:03:04.9]} 22. Ne4
{[%clk 0:02:09.9]} 22... b3 {[%clk 0:02:57.7]} 23. Qxb3 {[%clk 0:01:54.3]} 23...
Rxe4 {[%clk 0:02:57.3]} 24. Bxe4 {[%clk 0:01:51.4]} 24... Qxc5 {[%clk
0:02:57.9]} 25. Qxb7 {[%clk 0:01:51.7]} 25... Bb5 {[%clk 0:02:44.9]} 26. Ra1
{[%clk 0:01:24.8]} 26... Bxb2 {[%clk 0:02:35.3]} 27. Bxg6 {[%clk 0:01:16.4]}
27... hxg6 {[%clk 0:02:35.4]} 28. Rb1 {[%clk 0:01:02.2]} 28... Qc2 {[%clk
0:02:27.1]} 29. Re1 {[%clk 0:00:55.4]} 29... Qd3 {[%clk 0:02:19]} 30. d6 {[%clk
0:00:49.2]} 30... Bf6 {[%clk 0:02:19]} 31. h3 {[%clk 0:00:35.2]} 31... g5 {[%clk
0:02:17.3]} 32. Qa8+ {[%clk 0:00:24.4]} 32... Kh7 {[%clk 0:02:16.1]} 33. Qb7
{[%clk 0:00:24.8]} 33... Kh6 {[%clk 0:02:07.8]} 34. Qxf7 {[%clk 0:00:20.9]}
34... Qxd6 {[%clk 0:02:07.2]} 35. Qg8 {[%clk 0:00:21.3]} 35... Bc6 {[%clk
0:02:03.5]} 36. Qh8+ {[%clk 0:00:21.2]} 36... Kg6 {[%clk 0:02:03.9]} 37. Qg8
{[%clk 0:00:21.7]} 37... Qg3 {[%clk 0:02:00.9]} 38. Qe6 {[%clk 0:00:22.3]} 38...
Qxg2# {[%clk 0:02:00.9]} 0-1

[Event "*** Titled Tuesday 3|2 Blitz"]
[Site "Chess.com"]
[Date "2015.09.01"]
[Round "9"]
[White "1stSecond"]
[Black "HZMC92"]
[Result "1-0"]
[WhiteElo "2378"]
[BlackElo "2272"]
[TimeControl "180+2"]
[EndTime "12:48:42 PDT"]
[Termination "1stSecond won by resignation"]

1. d4 {[%clk 0:03:01.9]} 1... d5 {[%clk 0:03:01.1]} 2. Nf3 {[%clk 0:03:02.2]}
2... e6 {[%clk 0:03:02.5]} 3. c4 {[%clk 0:03:03.3]} 3... c6 {[%clk 0:03:03.9]}
4. Nc3 {[%clk 0:03:04.9]} 4... dxc4 {[%clk 0:03:05.3]} 5. a4 {[%clk 0:03:04.4]}
5... Bb4 {[%clk 0:03:06.3]} 6. e4 {[%clk 0:03:03]} 6... b5 {[%clk 0:03:07.5]} 7.
Be2 {[%clk 0:03:01.6]} 7... a5 {[%clk 0:03:08.3]} 8. O-O {[%clk 0:02:59.3]} 8...
Bxc3 {[%clk 0:03:06.1]} 9. bxc3 {[%clk 0:02:59.7]} 9... Nf6 {[%clk 0:03:08]} 10.
Bg5 {[%clk 0:02:59.2]} 10... h6 {[%clk 0:03:06.3]} 11. Bxf6 {[%clk 0:02:57.1]}
11... Qxf6 {[%clk 0:03:05.9]} 12. Rb1 {[%clk 0:02:53.2]} 12... Bd7 {[%clk
0:03:06.5]} 13. Ne5 {[%clk 0:02:52.9]} 13... Qe7 {[%clk 0:03:04]} 14. f4 {[%clk
0:02:51.7]} 14... O-O {[%clk 0:03:04.4]} 15. Qe1 {[%clk 0:02:50.6]} 15... Na6
{[%clk 0:02:59.1]} 16. Qg3 {[%clk 0:02:49.1]} 16... Rfb8 {[%clk 0:02:57.1]} 17.
f5 {[%clk 0:02:49.6]} 17... exf5 {[%clk 0:02:58.2]} 18. Nxd7 {[%clk 0:02:48.7]}
18... Qxd7 {[%clk 0:02:56.2]} 19. Rxf5 {[%clk 0:02:49.7]} 19... Nc7 {[%clk
0:02:43.1]} 20. Rbf1 {[%clk 0:02:48.9]} 20... Rf8 {[%clk 0:02:43.7]} 21. Bh5
{[%clk 0:02:43.7]} 21... f6 {[%clk 0:02:38.2]} 22. Rxf6 {[%clk 0:02:41.4]} 22...
Rxf6 {[%clk 0:02:38.8]} 23. Rxf6 {[%clk 0:02:43.3]} 23... Rf8 {[%clk 0:02:30.4]}
24. Rxh6 {[%clk 0:02:29.7]} 24... b4 {[%clk 0:02:28.2]} 25. Bg4 {[%clk
0:02:21.2]} 25... Qe7 {[%clk 0:02:04.7]} 26. Bf5 {[%clk 0:02:19.5]} 26... Rf6
{[%clk 0:01:44]} 27. Rxf6 {[%clk 0:02:17.4]} 27... Qxf6 {[%clk 0:01:43.8]} 28.
Qxc7 {[%clk 0:02:18.8]} 28... g6 {[%clk 0:01:41.6]} 29. Qc8+ {[%clk 0:02:15.2]}
29... Kg7 {[%clk 0:01:42.7]} 30. Qc7+ {[%clk 0:02:06.6]} 30... Kg8 {[%clk
0:01:38.3]} 31. Qxa5 {[%clk 0:01:59]} 31... gxf5 {[%clk 0:01:29.2]} 32. Qxb4
{[%clk 0:01:59.3]} 32... fxe4 {[%clk 0:01:26.5]} 33. Qxc4+ {[%clk 0:02:00.2]}
33... Kg7 {[%clk 0:01:28]} 34. Qe2 {[%clk 0:02:00.1]} 34... Qf4 {[%clk
0:01:24.7]} 35. Qe1 {[%clk 0:01:55.9]} 35... Kh6 {[%clk 0:01:16.1]} 36. a5
{[%clk 0:01:56.3]} 36... e3 {[%clk 0:01:10.4]} 37. a6 {[%clk 0:01:56.2]} 37...
Qe4 {[%clk 0:01:04.4]} 38. a7 {[%clk 0:01:55.9]} 38... e2 {[%clk 0:01:02.7]} 39.
a8=Q {[%clk 0:01:53.7]} 39... Qe3+ {[%clk 0:01:03]} 40. Kh1 {[%clk 0:01:54.9]}
40... c5 {[%clk 0:01:04.7]} 41. Qf8+ {[%clk 0:01:54]} 41... Kg6 {[%clk
0:00:59.7]} 42. Qf3 {[%clk 0:01:53.8]} 1-0

[Event "*** Titled Tuesday 3|2 Blitz"]
[Site "Chess.com"]
[Date "2015.09.01"]
[Round "9"]
[White "rikyshi"]
[Black "Grootneus"]
[Result "1-0"]
[WhiteElo "2114"]
[BlackElo "2002"]
[TimeControl "180+2"]
[EndTime "12:48:58 PDT"]
[Termination "rikyshi won by resignation"]

1. e4 {[%clk 0:02:56.8]} 1... c5 {[%clk 0:02:59.9]} 2. Nf3 {[%clk 0:02:55.7]}
2... Nc6 {[%clk 0:03:01.5]} 3. d4 {[%clk 0:02:54.7]} 3... cxd4 {[%clk
0:03:03.4]} 4. Nxd4 {[%clk 0:02:52.7]} 4... Nf6 {[%clk 0:03:04.5]} 5. Nc3 {[%clk
0:02:52.9]} 5... e5 {[%clk 0:03:05.1]} 6. Ndb5 {[%clk 0:02:54.3]} 6... d6 {[%clk
0:03:06]} 7. a4 {[%clk 0:02:54.5]} 7... a6 {[%clk 0:03:06.3]} 8. Na3 {[%clk
0:02:55.8]} 8... Bg4 {[%clk 0:03:07.3]} 9. f3 {[%clk 0:02:55]} 9... Be6 {[%clk
0:03:08.8]} 10. Bc4 {[%clk 0:02:52.4]} 10... Be7 {[%clk 0:03:07.5]} 11. O-O
{[%clk 0:02:52]} 11... O-O {[%clk 0:03:08.5]} 12. Be3 {[%clk 0:02:51.4]} 12...
Rc8 {[%clk 0:03:05.5]} 13. Nd5 {[%clk 0:02:49.2]} 13... Bxd5 {[%clk 0:02:05]}
14. exd5 {[%clk 0:02:44.8]} 14... Nb8 {[%clk 0:02:05.8]} 15. Bd3 {[%clk
0:02:44]} 15... Nbd7 {[%clk 0:02:03]} 16. c4 {[%clk 0:02:43.6]} 16... Nc5 {[%clk
0:01:56.2]} 17. Bc2 {[%clk 0:02:39.1]} 17... a5 {[%clk 0:01:57.5]} 18. g4 {[%clk
0:02:35.2]} 18... Nfd7 {[%clk 0:01:54]} 19. Nb5 {[%clk 0:02:33.9]} 19... Bg5
{[%clk 0:01:44.3]} 20. Qd2 {[%clk 0:02:28.8]} 20... Bxe3+ {[%clk 0:01:43.1]} 21.
Qxe3 {[%clk 0:02:29.5]} 21... Nb6 {[%clk 0:01:44.5]} 22. b3 {[%clk 0:02:27.6]}
22... Qe7 {[%clk 0:01:31]} 23. f4 {[%clk 0:02:25.8]} 23... e4 {[%clk 0:01:26]}
24. Rae1 {[%clk 0:02:22.7]} 24... f5 {[%clk 0:01:22.3]} 25. gxf5 {[%clk
0:02:22.3]} 25... Rce8 {[%clk 0:01:17.8]} 26. Nd4 {[%clk 0:02:20.8]} 26... Qh4
{[%clk 0:01:02.2]} 27. Ne6 {[%clk 0:02:17.6]} 27... Rxf5 {[%clk 0:00:50.2]} 28.
Nxc5 {[%clk 0:02:06.4]} 28... dxc5 {[%clk 0:00:51.4]} 29. Bxe4 {[%clk
0:02:07.4]} 29... Rf6 {[%clk 0:00:46.3]} 30. Bxh7+ {[%clk 0:01:56.6]} 30... Kxh7
{[%clk 0:00:46.3]} 31. Qxe8 {[%clk 0:01:56.7]} 31... Qg4+ {[%clk 0:00:30.5]} 32.
Kh1 {[%clk 0:01:55.3]} 32... Rxf4 {[%clk 0:00:31.9]} 33. Rxf4 {[%clk 0:01:52.3]}
33... Qxf4 {[%clk 0:00:32.8]} 34. Qe4+ {[%clk 0:01:53.2]} 34... Qxe4+ {[%clk
0:00:33.6]} 35. Rxe4 {[%clk 0:01:55.1]} 35... Nc8 {[%clk 0:00:34.7]} 36. Re8
{[%clk 0:01:53.8]} 36... Nd6 {[%clk 0:00:35.3]} 37. Re7 {[%clk 0:01:49.4]} 37...
Kg6 {[%clk 0:00:33.2]} 38. Re6+ {[%clk 0:01:49.8]} 1-0

[Event "*** Titled Tuesday 3|2 Blitz"]
[Site "Chess.com"]
[Date "2015.09.01"]
[Round "9"]
[White "Fh2411"]
[Black "alturas_pacificas"]
[Result "0-1"]
[WhiteElo "2168"]
[BlackElo "2024"]
[TimeControl "180+2"]
[EndTime "12:49:01 PDT"]
[Termination "alturas_pacificas won by checkmate"]

1. d4 {[%clk 0:03:01.9]} 1... d5 {[%clk 0:03:00.5]} 2. Nf3 {[%clk 0:03:02.2]}
2... Nf6 {[%clk 0:03:01]} 3. c4 {[%clk 0:03:01.8]} 3... c6 {[%clk 0:03:02.1]} 4.
Nc3 {[%clk 0:03:02]} 4... e6 {[%clk 0:03:03]} 5. e3 {[%clk 0:03:01.5]} 5... Nbd7
{[%clk 0:03:03.6]} 6. Qc2 {[%clk 0:03:02.2]} 6... Bd6 {[%clk 0:03:04.2]} 7. Bd3
{[%clk 0:03:02.7]} 7... dxc4 {[%clk 0:03:03.3]} 8. Bxc4 {[%clk 0:03:03.3]} 8...
b5 {[%clk 0:03:04.9]} 9. Be2 {[%clk 0:03:01.6]} 9... Bb7 {[%clk 0:03:06.3]} 10.
O-O {[%clk 0:02:51.3]} 10... a6 {[%clk 0:03:07.7]} 11. e4 {[%clk 0:02:35.4]}
11... e5 {[%clk 0:03:08]} 12. Rd1 {[%clk 0:02:14.4]} 12... Qe7 {[%clk
0:03:05.6]} 13. dxe5 {[%clk 0:01:56.9]} 13... Nxe5 {[%clk 0:03:04.6]} 14. Nxe5
{[%clk 0:01:56.1]} 14... Bxe5 {[%clk 0:02:32.7]} 15. Be3 {[%clk 0:01:44.9]}
15... O-O {[%clk 0:02:10.1]} 16. f3 {[%clk 0:01:38.7]} 16... Rfd8 {[%clk
0:02:05.5]} 17. Rxd8+ {[%clk 0:01:31]} 17... Rxd8 {[%clk 0:02:06.1]} 18. Rd1
{[%clk 0:01:32.2]} 18... Rxd1+ {[%clk 0:02:00.9]} 19. Nxd1 {[%clk 0:01:31.4]}
19... Qd7 {[%clk 0:01:33.5]} 20. g3 {[%clk 0:01:08.9]} 20... Bd4 {[%clk
0:01:25.9]} 21. Kf2 {[%clk 0:01:03.9]} 21... c5 {[%clk 0:01:23.4]} 22. b3 {[%clk
0:00:57.8]} 22... h6 {[%clk 0:01:10]} 23. Qd2 {[%clk 0:00:53.5]} 23... Bxe4
{[%clk 0:00:54.8]} 24. Qa5 {[%clk 0:00:35.5]} 24... Bb7 {[%clk 0:00:50.4]} 25.
Qb6 {[%clk 0:00:33.7]} 25... Nd5 {[%clk 0:00:42.4]} 26. Qa7 {[%clk 0:00:30]}
26... Nxe3 {[%clk 0:00:39.2]} 27. Nxe3 {[%clk 0:00:30.7]} 27... Bxe3+ {[%clk
0:00:40.1]} 28. Kxe3 {[%clk 0:00:31.6]} 28... Qd4# {[%clk 0:00:40.7]} 0-1

[Event "*** Titled Tuesday 3|2 Blitz"]
[Site "Chess.com"]
[Date "2015.09.01"]
[Round "9"]
[White "ilmago"]
[Black "ItalianMachine"]
[Result "0-1"]
[WhiteElo "1861"]
[BlackElo "2198"]
[TimeControl "180+2"]
[EndTime "12:49:05 PDT"]
[Termination "ItalianMachine won by resignation"]

1. e4 {[%clk 0:03:01.9]} 1... c5 {[%clk 0:02:59.7]} 2. Nf3 {[%clk 0:03:00.5]}
2... d6 {[%clk 0:03:00.5]} 3. d4 {[%clk 0:03:01.9]} 3... cxd4 {[%clk 0:03:02.4]}
4. Qxd4 {[%clk 0:03:03.4]} 4... Nf6 {[%clk 0:03:04.3]} 5. e5 {[%clk 0:03:04.4]}
5... Nc6 {[%clk 0:03:04]} 6. Bb5 {[%clk 0:03:04]} 6... Nd7 {[%clk 0:02:56]} 7.
Bxc6 {[%clk 0:03:03.6]} 7... bxc6 {[%clk 0:02:56.8]} 8. exd6 {[%clk 0:03:04.2]}
8... exd6 {[%clk 0:02:58.2]} 9. Bf4 {[%clk 0:03:04]} 9... Qf6 {[%clk 0:02:57.9]}
10. O-O {[%clk 0:02:51.3]} 10... Be7 {[%clk 0:02:52.5]} 11. Re1 {[%clk
0:02:43.5]} 11... O-O {[%clk 0:02:49.2]} 12. Nc3 {[%clk 0:02:37.7]} 12... d5
{[%clk 0:02:41.5]} 13. Rad1 {[%clk 0:02:25.1]} 13... a5 {[%clk 0:02:30.6]} 14.
Qa4 {[%clk 0:02:25]} 14... Nb6 {[%clk 0:02:27.9]} 15. Qd4 {[%clk 0:02:14.8]}
15... Nc4 {[%clk 0:02:16.5]} 16. Na4 {[%clk 0:01:56.6]} 16... Bg4 {[%clk
0:02:11.6]} 17. Rd3 {[%clk 0:01:43]} 17... Bf5 {[%clk 0:02:05.3]} 18. Rdd1
{[%clk 0:01:29.3]} 18... Bxc2 {[%clk 0:02:03.6]} 19. Nb6 {[%clk 0:01:09.4]}
19... Nxb6 {[%clk 0:01:44]} 20. Qxb6 {[%clk 0:01:09.7]} 20... Qxf4 {[%clk
0:01:30]} 21. Rc1 {[%clk 0:00:59.2]} 21... Be4 {[%clk 0:01:27]} 22. Qxc6 {[%clk
0:00:53.3]} 22... Bxf3 {[%clk 0:01:27]} 23. gxf3 {[%clk 0:00:48.7]} 23... Bd6
{[%clk 0:01:24]} 24. Qxd5 {[%clk 0:00:46.4]} 24... Qxh2+ {[%clk 0:01:23.8]} 25.
Kf1 {[%clk 0:00:47.8]} 25... Rae8 {[%clk 0:01:23.8]} 26. Rxe8 {[%clk 0:00:34.5]}
26... Rxe8 {[%clk 0:01:21.9]} 27. f4 {[%clk 0:00:35.9]} 27... Bxf4 {[%clk
0:01:18.9]} 28. Qc6 {[%clk 0:00:16.8]} 28... Qh3+ {[%clk 0:01:14.7]} 29. Kg1
{[%clk 0:00:17.4]} 29... Bh2+ {[%clk 0:01:15.4]} 30. Kh1 {[%clk 0:00:18.6]}
30... Bg3+ {[%clk 0:01:15.7]} 31. Kg1 {[%clk 0:00:20.2]} 31... Qh2+ {[%clk
0:01:17.1]} 0-1

[Event "*** Titled Tuesday 3|2 Blitz"]
[Site "Chess.com"]
[Date "2015.09.01"]
[Round "9"]
[White "AlexanderL"]
[Black "arnacman"]
[Result "1-0"]
[WhiteElo "2527"]
[BlackElo "2273"]
[TimeControl "180+2"]
[EndTime "12:49:29 PDT"]
[Termination "AlexanderL won by resignation"]

1. d4 {[%clk 0:03:01.9]} 1... d5 {[%clk 0:03:00.5]} 2. c4 {[%clk 0:03:02.8]}
2... c6 {[%clk 0:03:01.5]} 3. Nf3 {[%clk 0:03:02.8]} 3... Nf6 {[%clk 0:03:01]}
4. g3 {[%clk 0:03:04]} 4... a6 {[%clk 0:03:00.1]} 5. Nbd2 {[%clk 0:03:01]} 5...
Bg4 {[%clk 0:02:56.2]} 6. Bg2 {[%clk 0:02:59.8]} 6... Nbd7 {[%clk 0:02:55.7]} 7.
O-O {[%clk 0:02:59.2]} 7... e6 {[%clk 0:02:56.4]} 8. Qc2 {[%clk 0:02:58]} 8...
Be7 {[%clk 0:02:53.3]} 9. e4 {[%clk 0:02:57.3]} 9... dxe4 {[%clk 0:02:52.2]} 10.
Nxe4 {[%clk 0:02:58.5]} 10... O-O {[%clk 0:02:48.2]} 11. Nxf6+ {[%clk
0:02:57.7]} 11... Bxf6 {[%clk 0:02:43.9]} 12. Be3 {[%clk 0:02:57.9]} 12... e5
{[%clk 0:02:34.1]} 13. Rad1 {[%clk 0:02:51.5]} 13... exd4 {[%clk 0:02:34]} 14.
Bxd4 {[%clk 0:02:52.7]} 14... Qc7 {[%clk 0:02:24.9]} 15. Rd2 {[%clk 0:02:31.6]}
15... Rad8 {[%clk 0:02:03.7]} 16. Rfd1 {[%clk 0:02:20.9]} 16... Bxd4 {[%clk
0:02:02.3]} 17. Rxd4 {[%clk 0:02:21.1]} 17... Nf6 {[%clk 0:02:01.9]} 18. Qd2
{[%clk 0:02:10.9]} 18... Rxd4 {[%clk 0:01:56]} 19. Qxd4 {[%clk 0:02:10.5]} 19...
h6 {[%clk 0:01:53]} 20. h3 {[%clk 0:02:08.6]} 20... Be6 {[%clk 0:01:52]} 21. Ne5
{[%clk 0:01:58.5]} 21... Re8 {[%clk 0:01:18.3]} 22. b4 {[%clk 0:01:51]} 22...
Re7 {[%clk 0:00:47.8]} 23. Qc5 {[%clk 0:01:29.2]} 23... Bf5 {[%clk 0:00:41.7]}
24. Nxc6 {[%clk 0:01:25.2]} 24... bxc6 {[%clk 0:00:31.5]} 25. Qxf5 {[%clk
0:01:25.3]} 25... Re5 {[%clk 0:00:20.2]} 26. Qf4 {[%clk 0:01:24]} 26... c5
{[%clk 0:00:15.8]} 27. b5 {[%clk 0:01:21.3]} 27... axb5 {[%clk 0:00:15.9]} 28.
cxb5 {[%clk 0:01:22.4]} 28... Qb8 {[%clk 0:00:15.1]} 29. b6 {[%clk 0:01:20.9]}
29... Kf8 {[%clk 0:00:09.7]} 30. b7 {[%clk 0:01:15.1]} 30... Re8 {[%clk
0:00:07.9]} 31. Qxb8 {[%clk 0:01:10.6]} 31... Rxb8 {[%clk 0:00:08.6]} 32. a4
{[%clk 0:01:11.7]} 32... Ke7 {[%clk 0:00:08.3]} 33. a5 {[%clk 0:01:11.3]} 33...
Ne8 {[%clk 0:00:07.1]} 34. a6 {[%clk 0:01:12.1]} 34... Nd6 {[%clk 0:00:07.6]}
1-0

[Event "*** Titled Tuesday 3|2 Blitz"]
[Site "Chess.com"]
[Date "2015.09.01"]
[Round "9"]
[White "Tomsel"]
[Black "ChadaevNikolay"]
[Result "1-0"]
[WhiteElo "2357"]
[BlackElo "2593"]
[TimeControl "180+2"]
[EndTime "12:49:34 PDT"]
[Termination "Tomsel won by resignation"]

1. d4 {[%clk 0:03:01.9]} 1... Nf6 {[%clk 0:02:57.9]} 2. Bf4 {[%clk 0:03:01.1]}
2... g6 {[%clk 0:02:57.6]} 3. e3 {[%clk 0:02:57.9]} 3... Bg7 {[%clk 0:02:58.4]}
4. Nf3 {[%clk 0:02:55.2]} 4... d6 {[%clk 0:02:56.7]} 5. Be2 {[%clk 0:02:54]}
5... Nh5 {[%clk 0:02:52.3]} 6. Bg5 {[%clk 0:02:51.7]} 6... h6 {[%clk 0:02:53.1]}
7. Bh4 {[%clk 0:02:52.8]} 7... g5 {[%clk 0:02:54.4]} 8. Nfd2 {[%clk 0:02:49.7]}
8... Nf6 {[%clk 0:02:55.1]} 9. Bg3 {[%clk 0:02:50.6]} 9... Nc6 {[%clk
0:02:55.3]} 10. c4 {[%clk 0:02:45.7]} 10... e5 {[%clk 0:02:44.8]} 11. d5 {[%clk
0:02:42.7]} 11... Ne7 {[%clk 0:02:44.9]} 12. Nc3 {[%clk 0:02:40.9]} 12... Nf5
{[%clk 0:02:37.1]} 13. Qc2 {[%clk 0:02:36.9]} 13... a6 {[%clk 0:02:07.6]} 14.
Bd3 {[%clk 0:02:34.9]} 14... Ne7 {[%clk 0:02:06.7]} 15. h4 {[%clk 0:02:32.3]}
15... g4 {[%clk 0:02:04.5]} 16. h5 {[%clk 0:02:29.9]} 16... O-O {[%clk
0:02:01.6]} 17. Bh4 {[%clk 0:02:21.9]} 17... Qd7 {[%clk 0:01:57]} 18. O-O-O
{[%clk 0:02:19.1]} 18... Nf5 {[%clk 0:01:56.1]} 19. Bxf6 {[%clk 0:02:14]} 19...
Bxf6 {[%clk 0:01:56.6]} 20. Kb1 {[%clk 0:02:10.8]} 20... Bg7 {[%clk 0:01:57]}
21. Nde4 {[%clk 0:02:05]} 21... Ne7 {[%clk 0:01:52.3]} 22. f3 {[%clk 0:01:59.5]}
22... f5 {[%clk 0:01:52.4]} 23. Ng3 {[%clk 0:01:58.1]} 23... f4 {[%clk
0:01:51.4]} 24. exf4 {[%clk 0:01:56.5]} 24... exf4 {[%clk 0:01:52]} 25. Nge2
{[%clk 0:01:58.1]} 25... Qe8 {[%clk 0:01:21.6]} 26. fxg4 {[%clk 0:01:54.1]}
26... Bxg4 {[%clk 0:01:21.5]} 27. Rdf1 {[%clk 0:01:52.1]} 27... Be5 {[%clk
0:01:09.2]} 28. Qd2 {[%clk 0:01:44]} 28... Qf7 {[%clk 0:00:51.3]} 29. Rh4 {[%clk
0:01:39.1]} 29... Bf5 {[%clk 0:00:51.9]} 30. Nxf4 {[%clk 0:01:33.2]} 30... Qf6
{[%clk 0:00:52]} 31. g3 {[%clk 0:01:31.7]} 31... Qg5 {[%clk 0:00:51.8]} 32. Bxf5
{[%clk 0:01:28.9]} 32... Nxf5 {[%clk 0:00:50.9]} 33. Ne4 {[%clk 0:01:27.2]}
33... Qe7 {[%clk 0:00:47.8]} 34. Rg4+ {[%clk 0:01:25]} 34... Kh7 {[%clk
0:00:48.6]} 35. Ng6 {[%clk 0:01:22.8]} 35... Qd7 {[%clk 0:00:45.2]} 36. Nxf8+
{[%clk 0:01:17]} 36... Rxf8 {[%clk 0:00:46.7]} 37. Rg6 {[%clk 0:01:15.1]} 37...
Bg7 {[%clk 0:00:47.7]} 38. g4 {[%clk 0:01:12.6]} 38... Qe7 {[%clk 0:00:48.6]}
39. Qd3 {[%clk 0:01:10]} 39... Nh4 {[%clk 0:00:44.2]} 40. Rxf8 {[%clk
0:01:06.8]} 40... Qxf8 {[%clk 0:00:41.7]} 41. Nf6+ {[%clk 0:01:03.8]} 1-0

[Event "*** Titled Tuesday 3|2 Blitz"]
[Site "Chess.com"]
[Date "2015.09.01"]
[Round "9"]
[White "Dale"]
[Black "Moltini"]
[Result "0-1"]
[WhiteElo "1926"]
[BlackElo "2095"]
[TimeControl "180+2"]
[EndTime "12:50:29 PDT"]
[Termination "Moltini won by checkmate"]

1. c4 {[%clk 0:03:01.9]} 1... Nf6 {[%clk 0:03:00.6]} 2. h3 {[%clk 0:02:59.8]}
2... g6 {[%clk 0:03:01.5]} 3. g4 {[%clk 0:02:57.2]} 3... Bg7 {[%clk 0:03:02.6]}
4. Bg2 {[%clk 0:02:52.4]} 4... d5 {[%clk 0:03:03]} 5. g5 {[%clk 0:02:50.1]} 5...
Nh5 {[%clk 0:02:53.7]} 6. cxd5 {[%clk 0:02:49.2]} 6... Nf4 {[%clk 0:02:52.8]} 7.
d4 {[%clk 0:02:43.2]} 7... Nxg2+ {[%clk 0:02:52.9]} 8. Kf1 {[%clk 0:02:43.9]}
8... Nh4 {[%clk 0:02:54]} 9. e4 {[%clk 0:02:40.2]} 9... h6 {[%clk 0:02:52.2]}
10. Nc3 {[%clk 0:02:33.6]} 10... c6 {[%clk 0:02:52.6]} 11. Bf4 {[%clk
0:02:31.3]} 11... Qb6 {[%clk 0:02:46.1]} 12. Nge2 {[%clk 0:02:25.6]} 12... hxg5
{[%clk 0:02:44.1]} 13. Bxg5 {[%clk 0:02:25.2]} 13... Nf3 {[%clk 0:02:45.2]} 14.
Be3 {[%clk 0:02:26]} 14... Rxh3 {[%clk 0:02:37.1]} 15. Ng3 {[%clk 0:02:08.4]}
15... Rxh1+ {[%clk 0:02:36.7]} 16. Nxh1 {[%clk 0:02:07.2]} 16... Bh3+ {[%clk
0:02:37.4]} 17. Ke2 {[%clk 0:02:07.6]} 17... Nxd4+ {[%clk 0:02:38.6]} 18. Kd3
{[%clk 0:02:04.1]} 18... Qa6+ {[%clk 0:02:38.5]} 19. Kd2 {[%clk 0:02:03.9]}
19... c5 {[%clk 0:02:36.7]} 20. Ng3 {[%clk 0:01:57.7]} 20... Qb6 {[%clk
0:02:31.9]} 21. Rb1 {[%clk 0:01:46.7]} 21... Bd7 {[%clk 0:02:22.4]} 22. Ke1
{[%clk 0:01:41.6]} 22... Na6 {[%clk 0:02:21.2]} 23. a3 {[%clk 0:01:40.4]} 23...
O-O-O {[%clk 0:02:19.8]} 24. b4 {[%clk 0:01:40.7]} 24... cxb4 {[%clk 0:02:20]}
25. axb4 {[%clk 0:01:38.4]} 25... Nxb4 {[%clk 0:02:17.4]} 26. Kf1 {[%clk
0:01:37.6]} 26... Qa6+ {[%clk 0:02:16.3]} 27. Kg2 {[%clk 0:01:37.4]} 27... Nbc2
{[%clk 0:02:16.2]} 28. Bf4 {[%clk 0:01:35.4]} 28... Qc4 {[%clk 0:02:10]} 29. d6
{[%clk 0:01:26.7]} 29... Qxc3 {[%clk 0:02:03.4]} 30. dxe7 {[%clk 0:01:26.7]}
30... Rh8 {[%clk 0:02:04.2]} 31. f3 {[%clk 0:01:19.5]} 31... Bh3+ {[%clk
0:01:54.8]} 32. Kf2 {[%clk 0:01:19.7]} 32... Nc6 {[%clk 0:01:52.4]} 33. Qd6
{[%clk 0:01:15.9]} 33... Bd4+ {[%clk 0:01:53]} 34. Ke2 {[%clk 0:01:12.4]} 34...
Qc4+ {[%clk 0:01:48]} 35. Kd2 {[%clk 0:01:07.1]} 35... Qc3+ {[%clk 0:01:24.8]}
36. Ke2 {[%clk 0:01:05.2]} 36... Be5 {[%clk 0:01:15.1]} 37. Bxe5 {[%clk
0:00:55.5]} 37... Qxe5 {[%clk 0:01:16]} 38. Qxe5 {[%clk 0:00:49.1]} 38... Nxe5
{[%clk 0:01:15.9]} 39. Rc1 {[%clk 0:00:50.2]} 39... Kd7 {[%clk 0:01:16.9]} 40.
Rxc2 {[%clk 0:00:50.5]} 40... Nc6 {[%clk 0:01:16.5]} 41. Ke3 {[%clk 0:00:48.1]}
41... Kxe7 {[%clk 0:01:16.4]} 42. Ne2 {[%clk 0:00:45.3]} 42... Be6 {[%clk
0:01:16.9]} 43. Nf4 {[%clk 0:00:45.6]} 43... Rd8 {[%clk 0:01:16.1]} 44. Rg2
{[%clk 0:00:46]} 44... a5 {[%clk 0:01:16.4]} 45. Rh2 {[%clk 0:00:45.7]} 45... b5
{[%clk 0:01:16.9]} 46. Rh7 {[%clk 0:00:46.3]} 46... Ne5 {[%clk 0:01:14.2]} 47.
Ng2 {[%clk 0:00:40.1]} 47... b4 {[%clk 0:01:09.7]} 48. Kf4 {[%clk 0:00:40.7]}
48... Nd3+ {[%clk 0:01:09.9]} 49. Ke3 {[%clk 0:00:39.5]} 49... b3 {[%clk
0:01:10.8]} 50. Nh4 {[%clk 0:00:39.5]} 50... b2 {[%clk 0:01:09.9]} 51. Nxg6+
{[%clk 0:00:40.2]} 51... Kf6 {[%clk 0:01:11.3]} 52. Ne5 {[%clk 0:00:39.9]} 52...
Nxe5 {[%clk 0:01:09.5]} 53. f4 {[%clk 0:00:41]} 53... b1=Q {[%clk 0:01:06.9]}
54. fxe5+ {[%clk 0:00:41.1]} 54... Kxe5 {[%clk 0:01:07.4]} 55. Rh5+ {[%clk
0:00:41.3]} 55... f5 {[%clk 0:01:07.6]} 56. exf5 {[%clk 0:00:41]} 56... Rd3+
{[%clk 0:01:06.9]} 57. Ke2 {[%clk 0:00:40.5]} 57... Qc2+ {[%clk 0:01:08.1]} 58.
Ke1 {[%clk 0:00:41.4]} 58... Rd1# {[%clk 0:01:09.7]} 0-1